[Event "*** Titled Tuesday Blitz"]
[Site "Chess.com"]
[Date "2021.02.16"]
[Round "1"]
[White "mbojan"]
[Black "Coiote53"]
[Result "1-0"]
[WhiteElo "2621"]
[BlackElo "2322"]
[TimeControl "180+1"]
[EndTime "10:07:28 PST"]
[Termination "mbojan won by resignation"]

1. d4 {[%clk 0:03:00.8]} 1... Nf6 {[%clk 0:03:00]} 2. g3 {[%clk 0:03:01]} 2...
g6 {[%clk 0:02:59.4]} 3. Bg2 {[%clk 0:03:01.2]} 3... d5 {[%clk 0:03:00]} 4. Nf3
{[%clk 0:03:00.9]} 4... Bg7 {[%clk 0:02:59.7]} 5. O-O {[%clk 0:03:01.3]} 5...
O-O {[%clk 0:02:58.5]} 6. c4 {[%clk 0:03:01.9]} 6... c6 {[%clk 0:02:59]} 7. cxd5
{[%clk 0:02:58.9]} 7... cxd5 {[%clk 0:02:59.9]} 8. Nc3 {[%clk 0:02:59]} 8... Ne4
{[%clk 0:03:00.3]} 9. Nxe4 {[%clk 0:02:58.9]} 9... dxe4 {[%clk 0:02:59.4]} 10.
Ne5 {[%clk 0:02:59.3]} 10... Nd7 {[%clk 0:02:56.1]} 11. Bxe4 {[%clk 0:02:35.2]}
11... Nxe5 {[%clk 0:02:54]} 12. dxe5 {[%clk 0:02:35.3]} 12... Bxe5 {[%clk
0:02:51]} 13. Bh6 {[%clk 0:02:35.2]} 13... Bg7 {[%clk 0:02:50.9]} 14. Bxg7
{[%clk 0:02:21.4]} 14... Kxg7 {[%clk 0:02:51.8]} 15. Qb3 {[%clk 0:02:06.4]}
15... Qb6 {[%clk 0:02:50.7]} 16. Qc3+ {[%clk 0:02:01.9]} 16... Kg8 {[%clk
0:02:47.6]} 17. Qa3 {[%clk 0:01:49.4]} 17... Bh3 {[%clk 0:02:42]} 18. Rfd1
{[%clk 0:01:45]} 18... Rfe8 {[%clk 0:02:33.2]} 19. Rac1 {[%clk 0:01:38.6]} 19...
Rad8 {[%clk 0:02:28.5]} 20. Rxd8 {[%clk 0:01:34.1]} 20... Rxd8 {[%clk
0:02:29.4]} 21. Qxe7 {[%clk 0:01:19.3]} 21... Qd4 {[%clk 0:02:29]} 22. Bd3
{[%clk 0:01:02.8]} 22... Rd7 {[%clk 0:02:18.8]} 23. Rc8+ {[%clk 0:00:52.9]}
23... Kg7 {[%clk 0:02:18.4]} 24. Qf8+ {[%clk 0:00:53.3]} 24... Kf6 {[%clk
0:02:17.6]} 25. Qh8+ {[%clk 0:00:53.2]} 25... Kg5 {[%clk 0:02:17.3]} 26. Qxh7
{[%clk 0:00:26.8]} 26... Bf5 {[%clk 0:01:30.5]} 27. Bxf5 {[%clk 0:00:13.4]}
27... Kxf5 {[%clk 0:01:28.4]} 28. Qh3+ {[%clk 0:00:12.2]} 28... Kf6 {[%clk
0:01:26.8]} 29. Qh8+ {[%clk 0:00:12.2]} 29... Kf5 {[%clk 0:01:23.3]} 30. Qxd4
{[%clk 0:00:11.9]} 30... Rxd4 {[%clk 0:01:23.1]} 31. Rc7 {[%clk 0:00:12.6]}
31... Rb4 {[%clk 0:01:21.1]} 32. b3 {[%clk 0:00:09.7]} 32... f6 {[%clk
0:01:20.1]} 33. f3 {[%clk 0:00:10.1]} 33... Ke5 {[%clk 0:01:16.7]} 34. Kf2
{[%clk 0:00:10.6]} 34... f5 {[%clk 0:01:14.5]} 35. Ke3 {[%clk 0:00:08.7]} 35...
Rb6 {[%clk 0:01:13.1]} 36. Rc5+ {[%clk 0:00:08.4]} 36... Kf6 {[%clk 0:01:13]}
37. Rc4 {[%clk 0:00:09.3]} 37... Re6+ {[%clk 0:01:10.6]} 38. Kd3 {[%clk
0:00:09.8]} 38... b5 {[%clk 0:01:10.3]} 39. Rc5 {[%clk 0:00:09.4]} 39... Rd6+
{[%clk 0:01:10.4]} 40. Ke3 {[%clk 0:00:09.5]} 40... Re6+ {[%clk 0:01:10.5]} 41.
Kf2 {[%clk 0:00:10]} 41... a6 {[%clk 0:01:07.9]} 42. a4 {[%clk 0:00:10.3]} 42...
bxa4 {[%clk 0:01:03.5]} 43. bxa4 {[%clk 0:00:11.2]} 43... Rb6 {[%clk 0:01:04.2]}
44. Ra5 {[%clk 0:00:10.9]} 44... g5 {[%clk 0:01:04.7]} 45. h3 {[%clk 0:00:09.8]}
45... f4 {[%clk 0:01:03.1]} 46. g4 {[%clk 0:00:06]} 46... Kg6 {[%clk 0:01:01.4]}
47. h4 {[%clk 0:00:05.9]} 47... gxh4 {[%clk 0:00:59.6]} 48. Rh5 {[%clk
0:00:06.8]} 48... Rb4 {[%clk 0:00:56.5]} 49. a5 {[%clk 0:00:06.3]} 49... Ra4
{[%clk 0:00:53.4]} 50. Rxh4 {[%clk 0:00:06.5]} 50... Rxa5 {[%clk 0:00:53.8]} 51.
Rh8 {[%clk 0:00:07.1]} 51... Ra2 {[%clk 0:00:51.4]} 52. Rg8+ {[%clk 0:00:07.2]}
52... Kf6 {[%clk 0:00:51]} 53. Rf8+ {[%clk 0:00:07.3]} 53... Ke5 {[%clk
0:00:51.4]} 54. Rf5+ {[%clk 0:00:07.6]} 54... Ke6 {[%clk 0:00:51]} 55. Rxf4
{[%clk 0:00:08.5]} 55... a5 {[%clk 0:00:51.2]} 56. g5 {[%clk 0:00:09]} 56... a4
{[%clk 0:00:51.7]} 57. g6 {[%clk 0:00:09.3]} 1-0

[Event "*** Titled Tuesday Blitz"]
[Site "Chess.com"]
[Date "2021.02.16"]
[Round "1"]
[White "picturesquecheck"]
[Black "vladimirdamjanovic"]
[Result "1-0"]
[WhiteElo "2250"]
[BlackElo "2535"]
[TimeControl "180+1"]
[EndTime "10:07:28 PST"]
[Termination "picturesquecheck won by checkmate"]

1. d4 {[%clk 0:03:00.9]} 1... Nc6 {[%clk 0:02:59.3]} 2. c4 {[%clk 0:03:00.3]}
2... e5 {[%clk 0:02:58.9]} 3. dxe5 {[%clk 0:02:55.1]} 3... Nxe5 {[%clk
0:02:59.8]} 4. Nf3 {[%clk 0:02:53.8]} 4... Nxf3+ {[%clk 0:02:58.7]} 5. exf3
{[%clk 0:02:53.5]} 5... Nf6 {[%clk 0:02:58.7]} 6. Bd3 {[%clk 0:02:53.9]} 6...
Bb4+ {[%clk 0:02:58.9]} 7. Bd2 {[%clk 0:02:52.3]} 7... Bxd2+ {[%clk 0:02:44]} 8.
Nxd2 {[%clk 0:02:51.2]} 8... Qe7+ {[%clk 0:02:44.4]} 9. Qe2 {[%clk 0:02:50.9]}
9... Qxe2+ {[%clk 0:02:44.9]} 10. Kxe2 {[%clk 0:02:48]} 10... d6 {[%clk
0:02:45.8]} 11. Rhe1 {[%clk 0:02:44.8]} 11... O-O {[%clk 0:02:45.4]} 12. Kf1
{[%clk 0:02:44.3]} 12... a5 {[%clk 0:02:46.1]} 13. Ne4 {[%clk 0:02:42.2]} 13...
Nd7 {[%clk 0:02:41.4]} 14. f4 {[%clk 0:02:41.6]} 14... h6 {[%clk 0:02:39.5]} 15.
g3 {[%clk 0:02:40.8]} 15... b6 {[%clk 0:02:39]} 16. b3 {[%clk 0:02:40.3]} 16...
Bb7 {[%clk 0:02:38.6]} 17. Rad1 {[%clk 0:02:38.7]} 17... Rfe8 {[%clk 0:02:34.8]}
18. f3 {[%clk 0:02:38.2]} 18... g6 {[%clk 0:02:30.7]} 19. Kf2 {[%clk 0:02:37.7]}
19... Kg7 {[%clk 0:02:31.1]} 20. Bb1 {[%clk 0:02:37]} 20... f5 {[%clk
0:02:22.7]} 21. Nc3 {[%clk 0:02:36.8]} 21... Bc6 {[%clk 0:02:20.9]} 22. a3
{[%clk 0:02:33.3]} 22... Kf6 {[%clk 0:02:05.2]} 23. b4 {[%clk 0:02:31.9]} 23...
axb4 {[%clk 0:02:06.1]} 24. axb4 {[%clk 0:02:32.4]} 24... g5 {[%clk 0:02:06.7]}
25. fxg5+ {[%clk 0:02:31.3]} 25... hxg5 {[%clk 0:02:07.6]} 26. g4 {[%clk
0:02:16]} 26... fxg4 {[%clk 0:01:58.5]} 27. fxg4 {[%clk 0:02:15.6]} 27... Ne5
{[%clk 0:01:58.8]} 28. Rd4 {[%clk 0:02:01.5]} 28... Ra1 {[%clk 0:01:51.9]} 29.
Kg3 {[%clk 0:01:53.3]} 29... Ra3 {[%clk 0:01:49]} 30. Re3 {[%clk 0:01:42.7]}
30... Ng6 {[%clk 0:00:46.3]} 31. Nd5+ {[%clk 0:01:27]} 31... Bxd5 {[%clk
0:00:41.9]} 32. Rxa3 {[%clk 0:01:27.9]} 32... Bc6 {[%clk 0:00:38.6]} 33. Bxg6
{[%clk 0:01:27.7]} 33... Kxg6 {[%clk 0:00:39.4]} 34. b5 {[%clk 0:01:24.8]} 34...
Bd7 {[%clk 0:00:32.2]} 35. h4 {[%clk 0:01:21]} 35... gxh4+ {[%clk 0:00:31.3]}
36. Kxh4 {[%clk 0:01:21.9]} 36... Re5 {[%clk 0:00:30.5]} 37. Ra7 {[%clk
0:01:16.8]} 37... Rc5 {[%clk 0:00:30.2]} 38. Rxd6+ {[%clk 0:01:08.3]} 38... cxd6
{[%clk 0:00:28.5]} 39. Rxd7 {[%clk 0:01:09.2]} 39... Rxc4 {[%clk 0:00:24.4]} 40.
Rxd6+ {[%clk 0:01:09.4]} 40... Kg7 {[%clk 0:00:25.2]} 41. Rxb6 {[%clk
0:01:09.9]} 41... Rb4 {[%clk 0:00:26.1]} 42. Kg5 {[%clk 0:01:09.2]} 42... Rb1
{[%clk 0:00:25.1]} 43. Rb7+ {[%clk 0:01:09]} 43... Kg8 {[%clk 0:00:25.6]} 44.
Kg6 {[%clk 0:01:05.7]} 44... Kf8 {[%clk 0:00:25.8]} 45. g5 {[%clk 0:01:05.6]}
45... Rg1 {[%clk 0:00:22.8]} 46. b6 {[%clk 0:01:05.1]} 46... Rb1 {[%clk
0:00:22.5]} 47. Rb8+ {[%clk 0:01:02.5]} 47... Ke7 {[%clk 0:00:23]} 48. b7 {[%clk
0:01:02.8]} 48... Rb5 {[%clk 0:00:22.5]} 49. Rg8 {[%clk 0:00:56.4]} 49... Rb6+
{[%clk 0:00:19.8]} 50. Kh5 {[%clk 0:00:56.3]} 50... Rb1 {[%clk 0:00:10.4]} 51.
b8=Q {[%clk 0:00:55]} 51... Rh1+ {[%clk 0:00:11.3]} 52. Kg6 {[%clk 0:00:52.6]}
52... Ke6 {[%clk 0:00:12.2]} 53. Re8+ {[%clk 0:00:51.6]} 53... Kd5 {[%clk
0:00:13.1]} 54. Qb5+ {[%clk 0:00:51.3]} 54... Kd4 {[%clk 0:00:13.5]} 55. Rd8+
{[%clk 0:00:51.3]} 55... Ke3 {[%clk 0:00:14]} 56. Qd3+ {[%clk 0:00:50.5]} 56...
Kf2 {[%clk 0:00:14.3]} 57. Rf8+ {[%clk 0:00:50.3]} 57... Kg2 {[%clk 0:00:14.9]}
58. Qe2+ {[%clk 0:00:48.9]} 58... Kh3 {[%clk 0:00:14.7]} 59. Rf3+ {[%clk
0:00:48.8]} 59... Kh4 {[%clk 0:00:15.2]} 60. Qe4# {[%clk 0:00:47.9]} 1-0

[Event "*** Titled Tuesday Blitz"]
[Site "Chess.com"]
[Date "2021.02.16"]
[Round "1"]
[White "IAgrest"]
[Black "gross-aleks"]
[Result "0-1"]
[WhiteElo "2248"]
[BlackElo "2566"]
[TimeControl "180+1"]
[EndTime "10:07:29 PST"]
[Termination "gross-aleks won by resignation"]

1. e4 {[%clk 0:03:00.9]} 1... e5 {[%clk 0:02:54.5]} 2. Nf3 {[%clk 0:03:00.4]}
2... Nc6 {[%clk 0:02:53.9]} 3. Bb5 {[%clk 0:03:00.5]} 3... Nf6 {[%clk
0:02:52.7]} 4. d3 {[%clk 0:03:00.3]} 4... d6 {[%clk 0:02:52.2]} 5. c3 {[%clk
0:02:59.9]} 5... Bd7 {[%clk 0:02:51.3]} 6. O-O {[%clk 0:02:59.7]} 6... Be7
{[%clk 0:02:50.7]} 7. Nbd2 {[%clk 0:02:59.5]} 7... O-O {[%clk 0:02:50.2]} 8. Re1
{[%clk 0:02:59.6]} 8... Nh5 {[%clk 0:02:38.3]} 9. Nf1 {[%clk 0:02:39]} 9... Nf4
{[%clk 0:02:37.6]} 10. d4 {[%clk 0:02:28.9]} 10... a6 {[%clk 0:02:19.8]} 11.
Bxc6 {[%clk 0:02:13.8]} 11... Bxc6 {[%clk 0:02:19.1]} 12. dxe5 {[%clk
0:02:13.9]} 12... dxe5 {[%clk 0:02:20]} 13. Qxd8 {[%clk 0:02:04.1]} 13... Rfxd8
{[%clk 0:02:19.3]} 14. Nxe5 {[%clk 0:02:04.4]} 14... Nd3 {[%clk 0:02:16]} 15.
Nxd3 {[%clk 0:02:02]} 15... Rxd3 {[%clk 0:02:14.6]} 16. Ng3 {[%clk 0:01:58.7]}
16... Rad8 {[%clk 0:02:13.3]} 17. Be3 {[%clk 0:01:53.9]} 17... a5 {[%clk
0:02:11.4]} 18. Bd4 {[%clk 0:01:41]} 18... Rd2 {[%clk 0:02:08.2]} 19. Rab1
{[%clk 0:01:37.7]} 19... Ba4 {[%clk 0:01:59.5]} 20. b3 {[%clk 0:01:33.7]} 20...
Be8 {[%clk 0:01:58]} 21. a4 {[%clk 0:01:33.7]} 21... g6 {[%clk 0:01:49.8]} 22.
Nf1 {[%clk 0:01:23.2]} 22... Rd3 {[%clk 0:01:49.2]} 23. Re3 {[%clk 0:01:19.1]}
23... Rxe3 {[%clk 0:01:41.8]} 24. Bxe3 {[%clk 0:01:20]} 24... Rd3 {[%clk
0:01:39.7]} 25. c4 {[%clk 0:01:16.7]} 25... f5 {[%clk 0:01:28.9]} 26. exf5
{[%clk 0:01:13.2]} 26... gxf5 {[%clk 0:01:29.8]} 27. Bf4 {[%clk 0:01:13.1]}
27... c6 {[%clk 0:01:20.2]} 28. Ne3 {[%clk 0:01:12.8]} 28... Bg6 {[%clk
0:01:16.3]} 29. Kf1 {[%clk 0:01:12.1]} 29... Rd4 {[%clk 0:01:12.9]} 30. Be5
{[%clk 0:01:07.3]} 30... Re4 {[%clk 0:01:11]} 31. Bc7 {[%clk 0:01:04.1]} 31...
f4 {[%clk 0:01:10.3]} 32. Nc2 {[%clk 0:00:49.5]} 32... Re6 {[%clk 0:00:40.2]}
33. Rc1 {[%clk 0:00:42.6]} 33... Bd3+ {[%clk 0:00:39.7]} 34. Kg1 {[%clk
0:00:36.3]} 34... Bxc2 {[%clk 0:00:39.5]} 35. Bxa5 {[%clk 0:00:36.6]} 35... Bxb3
{[%clk 0:00:39.5]} 36. c5 {[%clk 0:00:36.2]} 36... Bxa4 {[%clk 0:00:39.2]} 37.
f3 {[%clk 0:00:34.2]} 37... Bb5 {[%clk 0:00:38.7]} 38. g3 {[%clk 0:00:32.7]}
38... Re3 {[%clk 0:00:37]} 39. Kf2 {[%clk 0:00:31.8]} 39... Re2+ {[%clk
0:00:36.7]} 40. Kg1 {[%clk 0:00:32.4]} 40... fxg3 {[%clk 0:00:36.4]} 41. hxg3
{[%clk 0:00:32.1]} 41... Bf6 {[%clk 0:00:36.8]} 42. Bc3 {[%clk 0:00:28.5]} 42...
Bg5 {[%clk 0:00:33.7]} 43. Rd1 {[%clk 0:00:26.6]} 43... Rc2 {[%clk 0:00:32.8]}
44. Bd4 {[%clk 0:00:22.1]} 44... Be2 {[%clk 0:00:31.4]} 45. Re1 {[%clk 0:00:22]}
45... Bxf3 {[%clk 0:00:30.9]} 46. Re8+ {[%clk 0:00:21.5]} 46... Kf7 {[%clk
0:00:30.5]} 47. Rb8 {[%clk 0:00:20.3]} 47... Ke6 {[%clk 0:00:27.3]} 48. Rxb7
{[%clk 0:00:19.7]} 48... Kd5 {[%clk 0:00:27]} 49. Rd7+ {[%clk 0:00:15.9]} 49...
Kc4 {[%clk 0:00:27.1]} 0-1

[Event "*** Titled Tuesday Blitz"]
[Site "Chess.com"]
[Date "2021.02.16"]
[Round "1"]
[White "dpopadic"]
[Black "Nikolakis2014"]
[Result "0-1"]
[WhiteElo "2343"]
[BlackElo "2643"]
[TimeControl "180+1"]
[EndTime "10:07:30 PST"]
[Termination "Nikolakis2014 won by resignation"]

1. e4 {[%clk 0:03:00.9]} 1... c5 {[%clk 0:02:54.9]} 2. Nc3 {[%clk 0:03:00]} 2...
Nc6 {[%clk 0:02:49.4]} 3. f4 {[%clk 0:02:59.7]} 3... d6 {[%clk 0:02:49.5]} 4.
Nf3 {[%clk 0:02:59.9]} 4... g6 {[%clk 0:02:47.7]} 5. Bc4 {[%clk 0:02:59.7]} 5...
e6 {[%clk 0:02:46.8]} 6. f5 {[%clk 0:02:55.8]} 6... Bg7 {[%clk 0:02:45.9]} 7. d3
{[%clk 0:02:46.1]} 7... Nge7 {[%clk 0:02:45.7]} 8. fxe6 {[%clk 0:02:37.7]} 8...
Bxe6 {[%clk 0:02:35.3]} 9. O-O {[%clk 0:02:37]} 9... Qd7 {[%clk 0:02:33.3]} 10.
Bxe6 {[%clk 0:02:32.3]} 10... fxe6 {[%clk 0:02:32.9]} 11. Ng5 {[%clk 0:02:28.8]}
11... Ne5 {[%clk 0:02:20.8]} 12. Bf4 {[%clk 0:02:14.4]} 12... N7c6 {[%clk
0:02:20.7]} 13. Qd2 {[%clk 0:02:01.5]} 13... O-O-O {[%clk 0:02:15.2]} 14. h3
{[%clk 0:01:59.2]} 14... Rdf8 {[%clk 0:02:08.9]} 15. Nf3 {[%clk 0:01:56.4]}
15... Nxf3+ {[%clk 0:01:56.9]} 16. Rxf3 {[%clk 0:01:55.6]} 16... g5 {[%clk
0:01:50.7]} 17. Bg3 {[%clk 0:01:33.7]} 17... Rxf3 {[%clk 0:01:49.9]} 18. gxf3
{[%clk 0:01:33.6]} 18... Nd4 {[%clk 0:01:50.1]} 19. Rf1 {[%clk 0:01:30.3]} 19...
Rf8 {[%clk 0:01:50]} 20. Kg2 {[%clk 0:01:30.4]} 20... Be5 {[%clk 0:01:38.7]} 21.
Bxe5 {[%clk 0:01:13.8]} 21... dxe5 {[%clk 0:01:38.7]} 22. Ne2 {[%clk 0:01:13.9]}
22... Qf7 {[%clk 0:01:20.4]} 23. Nxd4 {[%clk 0:01:12.4]} 23... exd4 {[%clk
0:01:20.1]} 24. Kh2 {[%clk 0:00:57.9]} 24... h6 {[%clk 0:01:16.5]} 25. Kg2
{[%clk 0:00:54.4]} 25... Kb8 {[%clk 0:01:15.4]} 26. c3 {[%clk 0:00:52.3]} 26...
e5 {[%clk 0:01:15.4]} 27. cxd4 {[%clk 0:00:51.3]} 27... exd4 {[%clk 0:01:14.3]}
28. b4 {[%clk 0:00:47]} 28... c4 {[%clk 0:01:03.1]} 29. dxc4 {[%clk 0:00:46.2]}
29... Qxc4 {[%clk 0:01:03.1]} 30. Rc1 {[%clk 0:00:43.1]} 30... Qf7 {[%clk
0:01:03]} 31. Qd3 {[%clk 0:00:40.4]} 31... Rd8 {[%clk 0:00:59.9]} 32. Rc4 {[%clk
0:00:38.9]} 32... Qf6 {[%clk 0:00:59.4]} 33. Rc5 {[%clk 0:00:35.5]} 33... a6
{[%clk 0:00:57.4]} 34. a4 {[%clk 0:00:33.5]} 34... Qf4 {[%clk 0:00:49.7]} 35.
Rc4 {[%clk 0:00:26]} 35... Qf6 {[%clk 0:00:42.7]} 36. Rc5 {[%clk 0:00:23.6]}
36... h5 {[%clk 0:00:35.9]} 37. Rd5 {[%clk 0:00:21.1]} 37... Rxd5 {[%clk
0:00:31.8]} 38. exd5 {[%clk 0:00:21.1]} 38... Qe5 {[%clk 0:00:28]} 39. Qe4
{[%clk 0:00:18.9]} 39... Qxe4 {[%clk 0:00:18.8]} 40. fxe4 {[%clk 0:00:18.4]}
40... g4 {[%clk 0:00:19]} 41. hxg4 {[%clk 0:00:17.9]} 41... hxg4 {[%clk
0:00:19.2]} 42. e5 {[%clk 0:00:18.6]} 42... d3 {[%clk 0:00:18.5]} 43. e6 {[%clk
0:00:18.2]} 43... Kc7 {[%clk 0:00:18]} 44. e7 {[%clk 0:00:17]} 44... Kd7 {[%clk
0:00:18.2]} 45. Kf2 {[%clk 0:00:16]} 45... d2 {[%clk 0:00:18.4]} 46. Ke2 {[%clk
0:00:16.1]} 46... g3 {[%clk 0:00:18.9]} 47. Kxd2 {[%clk 0:00:16.7]} 47... g2
{[%clk 0:00:19.2]} 48. Ke3 {[%clk 0:00:17.6]} 48... g1=Q+ {[%clk 0:00:19.6]} 49.
Ke4 {[%clk 0:00:18.5]} 49... Qg5 {[%clk 0:00:19.5]} 0-1

[Event "*** Titled Tuesday Blitz"]
[Site "Chess.com"]
[Date "2021.02.16"]
[Round "1"]
[White "ajedrez1101"]
[Black "Ave_Mariia"]
[Result "0-1"]
[WhiteElo "2098"]
[BlackElo "2498"]
[TimeControl "180+1"]
[EndTime "10:07:30 PST"]
[Termination "Ave_Mariia won by resignation"]

1. d4 {[%clk 0:03:00.8]} 1... Nf6 {[%clk 0:02:59.6]} 2. Bf4 {[%clk 0:03:00.8]}
2... e6 {[%clk 0:02:58.8]} 3. e3 {[%clk 0:03:00]} 3... c5 {[%clk 0:02:58]} 4.
Nf3 {[%clk 0:02:57]} 4... d5 {[%clk 0:02:58.1]} 5. Nbd2 {[%clk 0:02:55.3]} 5...
Nc6 {[%clk 0:02:57.3]} 6. c3 {[%clk 0:02:54.5]} 6... Bd6 {[%clk 0:02:56.9]} 7.
Bg3 {[%clk 0:02:54.1]} 7... O-O {[%clk 0:02:56.6]} 8. Bd3 {[%clk 0:02:53.8]}
8... b6 {[%clk 0:02:46.8]} 9. Qe2 {[%clk 0:02:50.4]} 9... Bb7 {[%clk 0:02:46.6]}
10. Rd1 {[%clk 0:02:50.9]} 10... Qc7 {[%clk 0:02:45.8]} 11. e4 {[%clk
0:02:47.2]} 11... dxe4 {[%clk 0:02:41.8]} 12. Nxe4 {[%clk 0:02:41.1]} 12... Nxe4
{[%clk 0:02:32.5]} 13. Bxe4 {[%clk 0:02:30.9]} 13... cxd4 {[%clk 0:02:27.7]} 14.
Bxd6 {[%clk 0:02:05.7]} 14... Qxd6 {[%clk 0:02:27.4]} 15. Nxd4 {[%clk
0:02:06.3]} 15... Qc7 {[%clk 0:02:10.4]} 16. O-O {[%clk 0:01:59.1]} 16... Nxd4
{[%clk 0:02:08.9]} 17. Rxd4 {[%clk 0:01:58.6]} 17... Rad8 {[%clk 0:01:59.3]} 18.
Rfd1 {[%clk 0:01:54.2]} 18... Rxd4 {[%clk 0:01:47.7]} 19. Rxd4 {[%clk
0:01:53.4]} 19... h6 {[%clk 0:01:36.9]} 20. Bxb7 {[%clk 0:01:51.4]} 20... Qxb7
{[%clk 0:01:37.1]} 21. Qd2 {[%clk 0:01:51.9]} 21... Qa6 {[%clk 0:01:03.1]} 22.
a3 {[%clk 0:01:49.1]} 22... Qb5 {[%clk 0:01:01.6]} 23. h3 {[%clk 0:01:48.3]}
23... a5 {[%clk 0:00:59.3]} 24. a4 {[%clk 0:01:47.6]} 24... Qb3 {[%clk
0:00:57.6]} 25. Rd7 {[%clk 0:01:44.5]} 25... Qxa4 {[%clk 0:00:55.4]} 26. Rb7
{[%clk 0:01:34.5]} 26... Qb3 {[%clk 0:00:53.3]} 27. Qd4 {[%clk 0:01:21]} 27...
Qxb2 {[%clk 0:00:50.4]} 28. Rxb6 {[%clk 0:01:19.1]} 28... Qc1+ {[%clk
0:00:50.6]} 29. Kh2 {[%clk 0:01:19]} 29... Ra8 {[%clk 0:00:45.9]} 30. Rd6 {[%clk
0:01:15.7]} 30... Qa3 {[%clk 0:00:41.8]} 31. c4 {[%clk 0:01:09.9]} 31... Qb4
{[%clk 0:00:40.4]} 32. Rb6 {[%clk 0:00:47.6]} 32... Qe7 {[%clk 0:00:35.7]} 33.
c5 {[%clk 0:00:47.6]} 33... a4 {[%clk 0:00:34.6]} 34. Qd6 {[%clk 0:00:30.4]}
34... Qxd6+ {[%clk 0:00:32.8]} 35. cxd6 {[%clk 0:00:30.5]} 35... Kf8 {[%clk
0:00:27.3]} 36. Rb7 {[%clk 0:00:28.8]} 36... a3 {[%clk 0:00:25.8]} 37. d7 {[%clk
0:00:21]} 37... Ke7 {[%clk 0:00:24.5]} 38. d8=Q+ {[%clk 0:00:07.3]} 38... Kxd8
{[%clk 0:00:24.4]} 39. Rb1 {[%clk 0:00:07.9]} 39... a2 {[%clk 0:00:18.2]} 40.
Ra1 {[%clk 0:00:08.4]} 40... Kc7 {[%clk 0:00:18.1]} 41. Kg3 {[%clk 0:00:08.7]}
41... Kc6 {[%clk 0:00:18.6]} 42. Kf3 {[%clk 0:00:09.4]} 42... Kc5 {[%clk
0:00:19.3]} 43. Ke3 {[%clk 0:00:10]} 43... Kc4 {[%clk 0:00:19.9]} 44. Kd2 {[%clk
0:00:10.6]} 44... Kb3 {[%clk 0:00:20.3]} 45. Kc1 {[%clk 0:00:09]} 45... Rc8+
{[%clk 0:00:20.1]} 46. Kd2 {[%clk 0:00:09.1]} 46... Kb2 {[%clk 0:00:20.7]} 0-1

[Event "*** Titled Tuesday Blitz"]
[Site "Chess.com"]
[Date "2021.02.16"]
[Round "1"]
[White "pavelalexandru07"]
[Black "Zubrrr"]
[Result "0-1"]
[WhiteElo "2326"]
[BlackElo "2628"]
[TimeControl "180+1"]
[EndTime "10:07:31 PST"]
[Termination "Zubrrr won by resignation"]

1. e4 {[%clk 0:03:00.9]} 1... e5 {[%clk 0:02:56.8]} 2. Nf3 {[%clk 0:02:59]} 2...
f5 {[%clk 0:02:56]} 3. exf5 {[%clk 0:02:45.7]} 3... e4 {[%clk 0:02:55.6]} 4. Qe2
{[%clk 0:02:43.8]} 4... Qe7 {[%clk 0:02:55.2]} 5. Ng1 {[%clk 0:02:39.2]} 5...
Nf6 {[%clk 0:02:53.7]} 6. d3 {[%clk 0:02:24.3]} 6... d5 {[%clk 0:02:53.7]} 7.
Nc3 {[%clk 0:02:20.8]} 7... Bxf5 {[%clk 0:02:49.8]} 8. dxe4 {[%clk 0:02:20.5]}
8... Bxe4 {[%clk 0:02:30.9]} 9. Nxe4 {[%clk 0:02:10.1]} 9... Nxe4 {[%clk
0:02:26.5]} 10. f3 {[%clk 0:02:02.3]} 10... Nf6 {[%clk 0:02:23.2]} 11. Qxe7+
{[%clk 0:01:57]} 11... Bxe7 {[%clk 0:02:24.1]} 12. Bd3 {[%clk 0:01:53.3]} 12...
Nbd7 {[%clk 0:02:18.1]} 13. c3 {[%clk 0:01:51.9]} 13... O-O {[%clk 0:02:16.5]}
14. Ne2 {[%clk 0:01:51.8]} 14... Rae8 {[%clk 0:02:08.1]} 15. Ng3 {[%clk
0:01:16.8]} 15... Bc5+ {[%clk 0:01:55.4]} 16. Kd1 {[%clk 0:01:13]} 16... Ne5
{[%clk 0:01:51.7]} 17. Be2 {[%clk 0:01:03]} 17... Ng6 {[%clk 0:01:33.9]} 18. b4
{[%clk 0:00:48.3]} 18... Bb6 {[%clk 0:01:29.9]} 19. a4 {[%clk 0:00:37.6]} 19...
Nh4 {[%clk 0:01:07.6]} 20. a5 {[%clk 0:00:33.3]} 20... Be3 {[%clk 0:01:07.7]}
21. Bxe3 {[%clk 0:00:27.6]} 21... Rxe3 {[%clk 0:01:08.6]} 22. Kd2 {[%clk
0:00:20.2]} 22... Rfe8 {[%clk 0:01:08.5]} 23. Rhg1 {[%clk 0:00:19]} 23... c6
{[%clk 0:00:41.8]} 24. Bd3 {[%clk 0:00:16.5]} 24... R3e7 {[%clk 0:00:31.9]} 25.
Kc2 {[%clk 0:00:10]} 25... g6 {[%clk 0:00:31]} 26. Kd2 {[%clk 0:00:09.9]} 26...
a6 {[%clk 0:00:30.8]} 27. Kc2 {[%clk 0:00:09.8]} 27... Kf7 {[%clk 0:00:31]} 28.
Kd2 {[%clk 0:00:10]} 28... Re5 {[%clk 0:00:27.1]} 29. Ne2 {[%clk 0:00:08.7]}
29... Rg5 {[%clk 0:00:16.2]} 30. Nf4 {[%clk 0:00:06]} 30... Nh5 {[%clk
0:00:15.2]} 31. Nxh5 {[%clk 0:00:05.9]} 31... gxh5 {[%clk 0:00:14.2]} 32. Bf1
{[%clk 0:00:05.7]} 32... Nxf3+ {[%clk 0:00:13.8]} 33. gxf3 {[%clk 0:00:04.8]}
33... Rxg1 {[%clk 0:00:14.7]} 34. c4 {[%clk 0:00:04.1]} 34... Kf6 {[%clk
0:00:12.6]} 35. cxd5 {[%clk 0:00:04]} 35... cxd5 {[%clk 0:00:13.5]} 36. Rc1
{[%clk 0:00:03.6]} 36... Re7 {[%clk 0:00:09.9]} 37. b5 {[%clk 0:00:02.7]} 37...
axb5 {[%clk 0:00:09.7]} 38. a6 {[%clk 0:00:03.1]} 38... bxa6 {[%clk 0:00:09.4]}
39. Rc6+ {[%clk 0:00:03.7]} 39... Re6 {[%clk 0:00:10]} 40. Rxe6+ {[%clk
0:00:01.8]} 40... Kxe6 {[%clk 0:00:10.4]} 41. Bh3+ {[%clk 0:00:02.7]} 0-1